Cogmind - Beta 11 --- EXPLORER MODE // 2022.04.15 @ 23:33:15 Player: Grimbling Result: Escaped! Performance ------------- Evolutions (9) 4500 Regions Visited (21) 4200 Robots Destroyed (226) 1130 Value Destroyed (8198) 8198 Prototype IDs (69) 1380 Alien Tech Used (10) 2000 Bonus (11541) 11541 TOTAL SCORE: 32949 Bonus ------- High Alert Combat Kills 541 Entered DSFs 1000 Met Warlord at Base 500 MAIN.C Attacked Warlord 500 Met Warlord at Research 2000 Scanned by Researcher 1000 Pursued by Intercept 1000 Met Warlord at Command 2000 Win 3000 Cogmind --------- Core Integrity 583/1850 Matter 300/300 Energy 692/700 System Corruption 10% Temperature Cool (16) Movement Hovering (27) Location To Epsilon Eridani Parts ------- > --- POWER (4) -------- Micro Antimatter Reactor Micro Antimatter Reactor Quantum Reactor Quantum Reactor > --- PROPULSION (8) --- Antigrav System Antigrav System Linear Gravjet Improved Antigrav System Improved Linear Gravjet Experimental Gyrokinetic Inverter Experimental Gyrokinetic Inverter Combat Linear Gravjet > --- UTILITY (12) ----- Advanced Heat Sink Advanced Cooling System Medium Storage Unit Advanced Visual Processing Unit Long-range Sensor Array Advanced Terrain Scanner Advanced ECM Suite Advanced ECM Suite Advanced Phase Shifter Advanced Thermal Shield > --- WEAPON (2) ------- Light Antimatter Cannon Enhanced Force Lance > --- INVENTORY (12) --- Quantum Reactor Light Quantum Reactor Reinforced Quantum Reactor Antigrav System Antigrav System Gyrokinetic Inverter Gyrokinetic Inverter Long-range Sensor Array Peak State ------------ > --- POWER ------------ Quantum Reactor Quantum Reactor Matter Drive > --- PROPULSION ------- Experimental Gyrokinetic Inverter Experimental Gyrokinetic Inverter Experimental Gyrokinetic Inverter Experimental Gyrokinetic Inverter Experimental Gyrokinetic Inverter Combat Linear Gravjet Combat Linear Gravjet Combat Linear Gravjet > --- UTILITY ---------- Experimental Power Amplifier Medium Storage Unit Advanced Energy Well Long-range Sensor Array Experimental Signal Interpreter Quantum Capacitor Advanced ECM Suite Experimental Cloaking Device Advanced Focal Shield Spacefold Activator > --- WEAPON ----------- HERF Cannon > --- INVENTORY -------- Reinforced Quantum Reactor Advanced Power Amplifier Advanced Weight Redist. System Long-range Sensor Array Long-range Sensor Array Advanced Dynamic Insulation System HERF Cannon [Rating: 216] Favorites ----------- Power Light Quantum Reactor Engine Improved Ion Engine Power Core Light Nuclear Core Reactor Light Quantum Reactor Propulsion Experimental Gyrokinetic Inverter Treads Improved Treads Leg Aluminum Leg Hover Unit Experimental Gyrokinetic Inverter Flight Unit VTOL Module Utility Medium Storage Unit Device Quantum Capacitor Storage Medium Storage Unit Processor Advanced Signal Interpreter Hackware Advanced Hacking Suite Protection Medium Regenerative Plating Artifact Spacefold Activator Weapon Compact HERF Cannon Energy Gun Shock Rifle Energy Cannon Compact HERF Cannon Ballistic Gun Autogun Ballistic Cannon Light Antimatter Cannon Launcher EMP Blaster Special Weapon RU-N14's Throwing Claymores v3 Piercing Weapon Vortex Lance Build | -11 -10 -9 -8 -7 -7 -6 -6 -6 -5 -5 -4 -4 -4 -4 -3 -3 -2 -2 -2 -1 -1 ------- Run | Scr Mat Mat Mat Fac DSF Fac Was Fac Fac DSF Fac Upp Upp War Pro Res Res Tes Sec Acc Com Slots Evolved 19 | . 1 2 2 2 . 2 . . 2 . 2 . . . . 2 2 . . 2 . Power 3 | . . . 1 . . . . . . . . . . . . 1 . . . 1 . Propulsion 6 | . . 1 1 1 . . . . 1 . 1 . . . . . . . . 1 . Utility 10 | . 1 1 . 1 . 2 . . 1 . 1 . . . . 1 2 . . . . Weapon . | . . . . . . . . . . . . . . . . . . . . . . Parts Attached 407 | 7 6 7 18 8 15 8 . 41 3 8 51 8 16 20 6 24 28 19 40 24 50 Power 80 | 1 1 1 4 . 3 3 . 8 1 . 6 3 3 4 . 3 6 2 12 9 10 Engine 9 | 1 . . 2 . 1 1 . 2 1 . 1 . . . . . . . . . . Core 22 | . 1 1 2 . 2 2 . 6 . . 1 1 2 2 . 1 . 1 . . . Reactor 49 | . . . . . . . . . . . 4 2 1 2 . 2 6 1 12 9 10 Propulsion 113 | 2 . 1 5 5 6 . . 13 1 3 17 2 9 3 4 11 9 1 10 2 9 Treads 1 | . . . . . . . . . . . 1 . . . . . . . . . . Leg 23 | 2 . 1 5 5 6 . . 4 . . . . . . . . . . . . . Wheel . | . . . . . . . . . . . . . . . . . . . . . . Hover 72 | . . . . . . . . 9 1 3 16 2 . . 2 8 9 1 10 2 9 Flight 17 | . . . . . . . . . . . . . 9 3 2 3 . . . . . Utility 140 | 2 4 2 3 1 4 3 . 10 1 3 20 . 2 7 2 4 11 12 15 9 25 Device 99 | 1 3 1 3 1 2 3 . 8 1 2 17 . 2 4 1 4 6 7 9 7 17 Storage 6 | 1 . . . . . . . . . . . . . . . . 2 2 . . 1 Processor 17 | . 1 1 . . 2 . . 2 . 1 2 . . 2 1 . 1 1 . 1 2 Hackware 6 | . . . . . . . . . . . 1 . . . . . 1 . 1 . 3 Protection 7 | . . . . . . . . . . . . . . 1 . . 1 2 1 . 2 Artifact 5 | . . . . . . . . . . . . . . . . . . . 4 1 . Weapon 74 | 2 1 3 6 2 2 2 . 10 . 2 8 3 2 6 . 6 2 4 3 4 6 Energy Gun 34 | 2 1 2 6 2 2 1 . 10 . . 2 2 2 1 . . . . . . 1 Energy Cannon 20 | . . . . . . 1 . . . 2 2 . . . . 4 2 2 1 3 3 Ballistic Gun 3 | . . . . . . . . . . . 3 . . . . . . . . . . Ballistic Cannon 1 | . . . . . . . . . . . . . . . . . . . . . 1 Launcher 1 | . . 1 . . . . . . . . . . . . . . . . . . . Special Weapon 2 | . . . . . . . . . . . . . . 1 . . . . . 1 . Impact Weapon . | . . . . . . . . . . . . . . . . . . . . . . Slashing Weapon . | . . . . . . . . . . . . . . . . . . . . . . Piercing Weapon 13 | . . . . . . . . . . . 1 1 . 4 . 2 . 2 2 . 1 Special Melee Weapon . | . . . . . . . . . . . . . . . . . . . . . . Unidentified Prototypes 52 | . . . 2 . . 3 . . . . 6 . . 10 1 4 1 9 14 1 1 Corrupted Parts 8 | . . . 1 . . . . 3 . . 2 1 1 . . . . . . . . System Corruption 11 | . . . 1 . . . . 3 . . 4 2 1 . . . . . . . . Parts Lost 97 | . . . 9 . 2 . 4 6 . 2 15 3 9 . . 1 . 1 14 15 16 Power 13 | . . . 1 . . . . . . . 1 1 . . . . . . 5 2 3 Propulsion 40 | . . . 4 . 1 . 2 2 . 1 9 2 8 . . 1 . . 3 3 4 Utility 29 | . . . 1 . 1 . 1 2 . 1 3 . . . . . . 1 3 9 7 Weapon 15 | . . . 3 . . . 1 2 . . 2 . 1 . . . . . 3 1 2 Highest Loss Streak 14 | . . . 5 . 1 . 4 3 . 2 6 2 7 . . 1 . 1 6 14 4 To Critical Strikes 4 | . . . . . . . 1 . . . . . 1 . . . . . . 1 1 Average Slot Usage (%) 88 | . 99 99 79 94 96 93 69 93 100 96 89 92 80 75 90 87 92 83 90 76 82 Engine 1 | . 3 . 9 7 7 7 3 . 5 5 1 . . . . . . . . . . Core 3 | . 8 10 3 7 7 4 6 11 5 4 1 2 5 4 5 3 . . . . . Reactor 5 | . . . . . . . . . . . 6 7 4 1 5 8 12 12 11 7 11 Leg 8 | . 25 30 20 30 34 31 22 7 . . . . . . . . . . . . . Hover 17 | . . . . . . . . 19 33 33 33 33 13 . . 20 28 25 28 26 27 Flight 2 | . . . . . . . . . . . . . 10 28 34 8 . . . . . Device 19 | . 15 20 14 21 17 18 12 24 27 23 20 20 19 16 20 20 20 20 22 22 22 Storage 6 | . 12 10 8 7 7 6 6 6 5 5 5 5 5 5 5 4 4 8 8 6 3 Processor 9 | . 8 10 8 7 8 12 12 12 11 13 15 15 15 16 15 10 11 4 4 4 3 Protection 1 | . . . . . . . . . . . . . . 3 5 4 3 4 3 . 1 Energy Gun 6 | . 25 19 14 14 14 12 6 10 11 7 . 7 3 . . . . . . . . Energy Cannon 1 | . . . . . . . . . . 1 3 . . . . 4 3 4 5 2 1 Piercing Weapon 1 | . . . . . . . . . . . . 1 4 . . . 4 3 1 . 2 Naked Turns . | . . . . . . . . . . . . . . . . . . . . . . Heaviest Build 105 | 18 22 24 31 29 36 40 40 41 46 46 61 59 58 41 41 82 87 98 102 101 105 Greatest Support 121 | 20 20 30 43 61 66 60 60 56 50 61 85 71 68 50 50 106 94 117 117 121 107 Greatest Overweight (x) 23 | . 1 . 2 . . . 1 4 . . 1 1 14 1 . 1 . . 23 3 . Average Overweight (x) . | . . . . . . . . . . . . . . . . . . . . . . Largest Inventory Capacity 12 | 10 10 10 10 10 10 10 10 10 10 10 10 10 10 10 10 10 10 10 12 12 12 Average Capacity 10 | 9 10 10 10 10 10 10 10 10 10 10 10 10 10 10 10 10 10 10 10 12 12 Most Carried 12 | . 10 9 10 10 10 10 9 10 9 10 10 10 10 10 10 10 10 10 12 11 12 Average Carried 8 | . 5 8 7 9 9 9 9 7 8 8 8 9 8 9 10 8 9 9 8 7 8 Final Capacity 12 | 10 10 10 10 10 10 10 10 10 10 10 10 10 10 10 10 10 10 10 12 12 12 Final Carried 10 | . 10 9 10 10 10 9 9 10 8 10 10 10 10 10 10 8 10 9 7 9 8 Class Distribution -------------------- 33% | Hacker-Mutant 18% | Generator-Mutant 14% | Scavenger-Scout 10% | Hacker-Scout 6% | Scavenger-Mutant 4% | Generator-Sprinter 3% | Generator-Ninja 3% | Hacker-Skirmisher Dominant Class ---------------- Hacker-Mutant | -10/Materials Hacker-Mutant | -9/Materials Hacker-Mutant | -8/Materials Scavenger-Mutant | -7/Factory Hacker-Mutant | -7/DSF Hacker-Skirmisher | -6/Factory Hacker-Mutant | -6/Waste Scavenger-Scout | -6/Factory Scavenger-Scout | -5/Factory Scavenger-Scout | -5/DSF Hacker-Scout | -4/Factory Hacker-Scout | -4/Upper Caves Scavenger-Scout | -4/Upper Caves Scavenger-Scout | -4/Warlord Scavenger-Scout | -3/Proximity Caves Scavenger-Mutant | -3/Research Generator-Sprinter | -2/Research Generator-Mutant | -2/Testing Generator-Mutant | -2/Section 7 Generator-Mutant | -1/Access Generator-Ninja | -1/Command Resources | -11 -10 -9 -8 -7 -7 -6 -6 -6 -5 -5 -4 -4 -4 -4 -3 -3 -2 -2 -2 -1 -1 ----------- Run | Scr Mat Mat Mat Fac DSF Fac Was Fac Fac DSF Fac Upp Upp War Pro Res Res Tes Sec Acc Com Matter Collected 4521 | 225 105 70 205 30 170 60 40 491 . 68 669 101 153 4 85 403 282 147 390 285 538 Remotely . | . . . . . . . . . . . . . . . . . . . . . . Salvage Created 11481 | . 448 852 1690 . 658 504 . 1315 . . 1583 463 410 . . 347 373 393 1216 732 497 Parts 522 | . 29 57 76 . 21 20 . 58 . . 68 24 26 . . 13 20 12 41 22 35 Haulers Intercepted 27 | . 1 3 3 . 1 2 . 3 . . 5 . . . . 2 1 1 2 3 . Recyclers Shooed 6 | . . 1 1 . . . . 1 . . 1 . . . . 1 . . . 1 . Parts Field Recycled . | . . . . . . . . . . . . . . . . . . . . . . Retrieved Matter . | . . . . . . . . . . . . . . . . . . . . . . Parts Self-Destructed . | . . . . . . . . . . . . . . . . . . . . . . Prevented . | . . . . . . . . . . . . . . . . . . . . . . Kills | -11 -10 -9 -8 -7 -7 -6 -6 -6 -5 -5 -4 -4 -4 -4 -3 -3 -2 -2 -2 -1 -1 ------- Run | Scr Mat Mat Mat Fac DSF Fac Was Fac Fac DSF Fac Upp Upp War Pro Res Res Tes Sec Acc Com Combat Hostiles Destroyed 148 | . 8 13 28 . 9 4 . 15 . . 22 6 12 . . . 4 2 15 6 4 Melee 14 | . . . . . . . . . . . 2 2 4 . . . . 1 1 . 4 Guns 68 | . 5 12 23 . 7 1 . 10 . . 3 2 5 . . . . . . . . Cannons 30 | . . . . . . . . . . . 13 . . . . . 4 . 10 3 . AOE 12 | . 3 1 1 . 1 . . 3 . . 2 . 1 . . . . . . . . Classes Destroyed 17 | . 5 1 3 . 2 1 . 3 . . . . . . . . . 1 1 . . Worker 9 | . . . 1 . . . . 1 . . 4 . . . . 1 . . . 1 1 Builder 3 | . . . 1 . . . . 2 . . . . . . . . . . . . . Tunneler 1 | . . . . . . . . 1 . . . . . . . . . . . . . Hauler 27 | . 1 3 3 . 1 2 . 3 . . 5 . . . . 2 1 1 2 3 . Recycler 5 | . 1 . 3 . . . . . . . . . . . . . . . . . 1 Operator 9 | . . . 1 . . . . 2 . . . . . . . . 2 . 2 . 2 Drone 4 | . . . . . . . . . . . . . . . . . . . 4 . . Watcher 24 | . 3 3 2 . . . . 3 . . 3 . . . . 3 2 . 2 1 2 Swarmer 60 | . 2 1 8 . 2 . . 6 . . 15 . 10 . . . 4 1 7 4 . Cutter 3 | . . . . . 3 . . . . . . . . . . . . . . . . Grunt 47 | . 6 8 15 . 2 2 . 6 . . 2 3 . . . . . 1 2 . . Brawler 1 | . . . . . . . . 1 . . . . . . . . . . . . . Researcher 4 | . . . . . . . . . . . . . . . . . . 3 1 . . Sentry 13 | . . 4 5 . . . . . . . 1 1 . . . . . . 2 . . Specialist 2 | . . . . . 2 . . . . . . . . . . . . . . . . Hunter 4 | . . . . . . 2 . . . . . . 2 . . . . . . . . Programmer 12 | . . . . . . . . 2 . . 4 2 . . . . . . . . 4 Tracker 2 | . . . . . . . . . . . . . . . . . . . . 2 . Best Kill Streak 9 | . 6 4 9 . 3 2 . 6 . . 5 3 9 . . 3 2 2 9 4 2 Combat Bots Only 9 | . 5 4 5 . 3 2 . 5 . . 4 3 9 . . . 2 1 7 4 2 Max Kills in Single Turn 4 | . 4 2 2 . 2 1 . 2 . . 2 1 1 . . 1 1 1 1 1 1 Gunslinging 1 | . . . 1 . 1 . . . . . . . . . . . . . . . . Exploded 3 | . 3 1 1 . 1 . . 1 . . 2 . 1 . . . . . . . . Melee 1 | . . . . . . . . . . . 1 1 1 . . . . 1 1 . 1 Uniques/NPCs Destroyed . | . . . . . . . . . . . . . . . . . . . . . . Combat | -11 -10 -9 -8 -7 -7 -6 -6 -6 -5 -5 -4 -4 -4 -4 -3 -3 -2 -2 -2 -1 -1 -------- Run | Scr Mat Mat Mat Fac DSF Fac Was Fac Fac DSF Fac Upp Upp War Pro Res Res Tes Sec Acc Com Damage Taken 14426 | . 93 188 884 . 609 216 80 872 . 272 1562 243 772 . 102 374 135 128 2885 1949 3062 Core 2621 | . 15 36 115 . 67 44 . 93 . 35 144 14 200 . 15 51 57 . 468 385 882 Absorbed by Shields 40 | . . . . . . . . . . . . . . . . . . . . . 40 Redirected to Shielding 193 | . . . . . . . . . . . . . . . 23 22 45 . . . 103 Regen/Repaired (Parts) 392 | . . . . . . . . . . . . . . . . . . 44 348 . . Core Remaining (%) 80 | 100 94 91 79 . 90 . . 83 . 96 . . . . 67 96 . . 61 . 31 Volleys Fired 535 | . 17 39 105 . 21 17 . 78 . . 93 10 20 . . 8 14 10 52 42 9 Largest 2 | . 2 2 2 . 2 2 . 2 . . 2 2 1 . . 2 1 1 2 1 1 Hottest 188 | . 80 100 122 . 122 110 . 130 . . 81 120 65 . . 181 94 94 188 88 88 Shots Fired 752 | . 34 78 160 . 42 34 . 119 . . 100 22 21 . . 9 14 10 57 42 10 Gun 541 | . 34 78 160 . 42 34 . 119 . . 28 22 21 . . . . . . . 3 Cannon 211 | . . . . . . . . . . . 72 . . . . 9 14 10 57 42 7 Launcher . | . . . . . . . . . . . . . . . . . . . . . . Special . | . . . . . . . . . . . . . . . . . . . . . . Kinetic 28 | . . . . . . . . . . . 27 . . . . . . . . . 1 Thermal 133 | . . . 71 . 22 . . 40 . . . . . . . . . . . . . Explosive . | . . . . . . . . . . . . . . . . . . . . . . Electromagnetic 591 | . 34 78 89 . 20 34 . 79 . . 73 22 21 . . 9 14 10 57 42 9 Robot Hit Streak 47 | . 9 23 31 . 9 28 . 47 . . 37 22 18 . . 17 11 12 18 15 13 Robot Miss Streak 3 | . 1 2 3 . 1 1 . 2 . . 1 1 1 . . 1 1 . 2 2 1 Penetration Max . | . . . . . . . . . . . . . . . . . . . . . . Secondary Targets 9 | . . . 2 . 2 1 . 3 . . . 1 . . . . . . . . . Max Gunslinging Chain 1 | . . . 1 . 1 1 . 1 . . . 1 . . . . . . . . . Capacitor 175 | . . . . . . . . . . . 31 1 20 . . 7 14 10 44 42 6 Shots Hit Robots 666 | . 26 62 140 . 33 32 . 105 . . 96 21 22 . . 11 12 12 37 36 21 Core Hits 303 | . 15 23 57 . 13 9 . 48 . . 49 11 14 . . 7 10 5 19 13 10 Critical Kills . | . . . . . . . . . . . . . . . . . . . . . . Critical Parts Destroyed 1 | . . . . . . . . . . . 1 . . . . . . . . . . Critical Strikes 33 | . . 2 8 . 1 . . 6 . . 2 2 2 . . 1 . 2 2 4 1 Burn 11 | . . . 5 . 1 . . 5 . . . . . . . . . . . . . Destroy 1 | . . . . . . . . . . . 1 . . . . . . . . . . Corrupt 14 | . . 2 3 . . . . 1 . . 1 1 1 . . . . . 1 4 . Impale 3 | . . . . . . . . . . . . 1 1 . . . . . . . 1 Sunder 4 | . . . . . . . . . . . . . . . . 1 . 2 1 . . Melee Attacks 76 | . . . . . . . . . . . 5 2 5 4 . 5 . 12 9 . 34 Impact . | . . . . . . . . . . . . . . . . . . . . . . Slashing . | . . . . . . . . . . . . . . . . . . . . . . Piercing 48 | . . . . . . . . . . . 5 2 5 2 . . . . . . 34 Entropic 28 | . . . . . . . . . . . . . . 2 . 5 . 12 9 . . Sneak Attacks 7 | . . . . . . . . . . . . . . . . . . 3 1 . 3 Combat Hostiles . | . . . . . . . . . . . . . . . . . . . . . . Follow-up Attacks . | . . . . . . . . . . . . . . . . . . . . . . Damage Inflicted 19438 | . 589 1245 2845 . 759 665 . 2619 . . 2717 522 650 . . 589 591 1125 2242 1138 1142 Guns 8725 | . 391 1173 2432 . 651 665 . 2130 . . 386 436 430 . . . . . . . 31 Cannons 5656 | . . . . . . . . . . . 1884 . . . . 290 532 235 1480 1138 97 Explosions 1531 | . 198 72 407 . 108 . . 489 . . 144 . 54 . . . 59 . . . . Melee 3381 | . . . . . . . . . . . 226 86 166 . . 299 . 890 700 . 1014 Ramming 145 | . . . 6 . . . . . . . 77 . . . . . . . 62 . . Kinetic 381 | . . . . . . . . . . . 381 . . . . . . . . . . Thermal 3200 | . 198 72 1115 . 448 . . 1110 . . 144 . 54 . . . 59 . . . . Explosive 558 | . . . 338 . . . . 220 . . . . . . . . . . . . . Electromagnetic 11773 | . 391 1173 1386 . 311 665 . 1289 . . 1889 436 430 . . 290 532 235 1480 1138 128 Impact . | . . . . . . . . . . . . . . . . . . . . . . Slashing . | . . . . . . . . . . . . . . . . . . . . . . Piercing 1492 | . . . . . . . . . . . 226 86 166 . . . . . . . 1014 Entropic 1889 | . . . . . . . . . . . . . . . . 299 . 890 700 . . Highest Corruption 10 | . . . 1 . . . 3 10 . . 5 7 8 8 . . . . 8 7 10 Average Corruption 5 | . . . 1 . . . 3 7 . . 3 5 7 8 . . . . 4 3 9 Corruption Purged . | . . . . . . . . . . . . . . . . . . . . . . Corruption Blocked 87 | . . . . . . . . . . . . . . . . . 32 20 20 . 15 Effects 110 | . . . 6 . . . 2 35 . . 10 10 8 . . . . . 4 . 35 Message Errors 21 | . . . 1 . . . 1 5 . . 3 2 2 . . . . . 1 . 6 Matter Fused 41 | . . . . . . . . 17 . . 4 4 2 . . . . . 1 . 13 Heat Flow Errors 7 | . . . 1 . . . . 1 . . 1 1 . . . . . . 1 . 2 Energy Discharges 14 | . . . 2 . . . . 3 . . . . 1 . . . . . . . 8 Parts Rejected 1 | . . . . . . . 1 . . . . . . . . . . . . . . Data Loss (minor) 9 | . . . 1 . . . . 4 . . . . 2 . . . . . . . 2 Data Loss (major) 3 | . . . . . . . . 2 . . . 1 . . . . . . . . . Misfires 7 | . . . 1 . . . . . . . 1 2 1 . . . . . 1 . 1 Alerts 5 | . . . . . . . . 2 . . 1 . . . . . . . . . 2 Misdirections 2 | . . . . . . . . 1 . . . . . . . . . . . . 1 Overload Shots . | . . . . . . . . . . . . . . . . . . . . . . Overflow Damage 692 | . . . 67 . . . . 21 . . 101 . . . . 32 25 137 258 4 47 Projectiles 230 | . . . . . . . . . . . 101 . . . . . 25 . 99 4 1 Explosions 88 | . . . 67 . . . . 21 . . . . . . . . . . . . . Melee 374 | . . . . . . . . . . . . . . . . 32 . 137 159 . 46 Knockbacks 1 | . . . . . . . . . . . . . . . . . . . 1 . . Impact 1 | . . . . . . . . . . . . . . . . . . . 1 . . Kinetic . | . . . . . . . . . . . . . . . . . . . . . . Secondary . | . . . . . . . . . . . . . . . . . . . . . . Self-Inflicted Damage 355 | . 6 . 74 . . . . 183 . . 61 . . . . . . . 31 . . Shots 9 | . 1 . 3 . . . . 4 . . 1 . . . . . . . . . . Rammed 5 | . . . . . . . . . . . 4 . . . . . . . 1 . . Targets Rammed 9 | . . . 4 . . . . . . . 4 . . . . . . . 1 . . Kicked 4 | . . . 4 . . . . . . . . . . . . . . . . . . Crushed . | . . . . . . . . . . . . . . . . . . . . . . Highest Temperature 387 | . 117 204 385 . 13 39 . 387 . . 342 268 85 61 257 132 188 11 193 188 225 Average Temperature 88 | . 40 63 119 . 10 23 . 122 . . 114 80 42 50 114 44 65 6 65 70 32 Received Heat Transfer 1902 | . 72 126 450 . 180 45 . 252 . . 117 51 9 . . 60 . 9 324 36 171 Effects 10 | . . . 9 . . . . . . . 1 . . . . . . . . . . Shutdowns 1 | . . . 1 . . . . . . . . . . . . . . . . . . Energy Bleed 3 | . . . 2 . . . . . . . 1 . . . . . . . . . . Interference 3 | . . . 3 . . . . . . . . . . . . . . . . . . Matter Decay 1 | . . . 1 . . . . . . . . . . . . . . . . . . Damage (minor) 2 | . . . 2 . . . . . . . . . . . . . . . . . . Siege Activations . | . . . . . . . . . . . . . . . . . . . . . . Robots Corrupted 38 | . 1 2 3 . 1 4 . 4 . . 5 2 2 . . 1 . 1 6 5 1 Combat Hostiles 23 | . . . 3 . 1 3 . 2 . . 2 2 2 . . . . 1 4 3 . Parts Fried 97 | . 4 5 7 . 3 8 . 8 . . 12 3 3 . . 1 7 2 12 18 4 Impact Corruptions 1 | . . . . . . . . . . . . . . . . . . . 1 . . Robots Melted 2 | . . . 2 . . . . . . . . . . . . . . . . . . Combat Hostiles 1 | . . . 1 . . . . . . . . . . . . . . . . . . Parts Melted 14 | . . . 5 . . . . 9 . . . . . . . . . . . . . Heat Transferred 6481 | . 300 50 2727 . 803 . . 2401 . . 150 . . . . . 50 . . . . Parts Sabotaged . | . . . . . . . . . . . . . . . . . . . . . . Parts Stolen . | . . . . . . . . . . . . . . . . . . . . . . Parts Stripped . | . . . . . . . . . . . . . . . . . . . . . . Power Chain Reactions 17 | . 2 3 2 . 1 . . 4 . . 3 . 1 . . . 1 . . . . Missiles Intercepted . | . . . . . . . . . . . . . . . . . . . . . . Alert | -11 -10 -9 -8 -7 -7 -6 -6 -6 -5 -5 -4 -4 -4 -4 -3 -3 -2 -2 -2 -1 -1 ------- Run | Scr Mat Mat Mat Fac DSF Fac Was Fac Fac DSF Fac Upp Upp War Pro Res Res Tes Sec Acc Com Peak Influence 1148 | . 176 403 1148 238 398 268 64 341 61 107 474 . . . . 639 476 251 675 633 785 Initial 279 | . . 45 121 232 127 154 64 12 61 32 33 . . . . 46 269 124 81 279 143 Average 309 | . 80 155 683 232 266 186 44 161 61 51 206 . . . . 286 362 204 359 394 480 Maximum Alert Level 4 | . . 2 4 1 1 1 . 1 . . 2 . . . . 2 2 1 2 2 3 Low Security (%) 41 | 100 100 77 9 . 17 65 100 67 100 100 53 . . . . 25 5 35 33 . 9 Level 1 31 | . . 19 7 100 82 34 . 32 . . 33 . . . . 51 55 64 26 65 36 Level 2 18 | . . 3 26 . . . . . . . 13 . . . . 22 38 . 39 34 36 Level 3 8 | . . . 55 . . . . . . . . . . . . . . . . . 16 Level 4 . | . . . . . . . . . . . . . . . . . . . . . . Level 5 . | . . . . . . . . . . . . . . . . . . . . . . High Security . | . . . . . . . . . . . . . . . . . . . . . . Max Security . | . . . . . . . . . . . . . . . . . . . . . . Sterilizations 1 | . . . . . 1 . . . . . . . . . . . . . . . . Squads Dispatched 64 | . 1 1 4 . 2 1 . 4 . 1 12 . . . . 4 2 4 11 7 10 Investigation 18 | . 1 . 2 . . . . 2 . . 3 . . . . 2 1 . . 2 5 Extermination 10 | . . . . . . . . 1 . . 2 . . . . 1 . . 3 . 3 Reinforcement 26 | . . 1 2 . 2 1 . 1 . 1 6 . . . . 1 1 4 2 2 2 Assault . | . . . . . . . . . . . . . . . . . . . . . . Garrison 4 | . . . . . . . . . . . 1 . . . . . . . 3 . . Intercept 6 | . . . . . . . . . . . . . . . . . . . 3 3 . Searches Triggered 8 | . . . 2 . . . . . . . . . . . . . . . 2 1 3 Construction Impeded . | . . . . . . . . . . . . . . . . . . . . . . Haulers Reinforced 7 | . . . . . . 1 . . . . 3 . . . . . . 2 . 1 . Active Scanning Responses . | . . . . . . . . . . . . . . . . . . . . . . Cargo Convoy Interrupts . | . . . . . . . . . . . . . . . . . . . . . . Stealth | -11 -10 -9 -8 -7 -7 -6 -6 -6 -5 -5 -4 -4 -4 -4 -3 -3 -2 -2 -2 -1 -1 --------- Run | Scr Mat Mat Mat Fac DSF Fac Was Fac Fac DSF Fac Upp Upp War Pro Res Res Tes Sec Acc Com Distress Signals 30 | . . 1 8 . . . . 1 . . 1 . . . . . 11 . 3 1 4 Communications Jammed . | . . . . . . . . . . . . . . . . . . . . . . Distress Signals . | . . . . . . . . . . . . . . . . . . . . . . Times Spotted 537 | . 12 24 79 . 13 4 6 29 . 7 43 6 13 . 8 37 19 14 90 42 91 Peak Tracking Total 18 | . 5 4 18 . 4 2 6 4 . 4 9 3 6 . 6 15 9 4 12 11 13 Tactical Retreats 90 | . 1 3 10 . 4 . . 4 . 2 6 . . . 2 7 2 4 19 7 19 Traps | -11 -10 -9 -8 -7 -7 -6 -6 -6 -5 -5 -4 -4 -4 -4 -3 -3 -2 -2 -2 -1 -1 ------- Run | Scr Mat Mat Mat Fac DSF Fac Was Fac Fac DSF Fac Upp Upp War Pro Res Res Tes Sec Acc Com Traps Triggered 15 | . 1 . . . 2 1 . 5 . . 2 . . . . 1 . . . . 3 Indirectly . | . . . . . . . . . . . . . . . . . . . . . . Trap Hack Attempts . | . . . . . . . . . . . . . . . . . . . . . . Triggered . | . . . . . . . . . . . . . . . . . . . . . . Disarmed . | . . . . . . . . . . . . . . . . . . . . . . Reprogrammed 10 | . . . . . . . . . . . . . . . . . . . . . 10 Reused 4 | . . . . . . . . . . . . . . . . . . . . . 4 Traps Extracted . | . . . . . . . . . . . . . . . . . . . . . . Installed . | . . . . . . . . . . . . . . . . . . . . . . Triggered 9 | . . . . . . . . . . . . . . 4 1 . . . . . 4 Machines | -11 -10 -9 -8 -7 -7 -6 -6 -6 -5 -5 -4 -4 -4 -4 -3 -3 -2 -2 -2 -1 -1 ---------- Run | Scr Mat Mat Mat Fac DSF Fac Was Fac Fac DSF Fac Upp Upp War Pro Res Res Tes Sec Acc Com Machines Disabled 30 | . . 1 3 . 1 . . 4 . . 2 . . 1 . . 1 4 11 . 2 Max in Single Turn 2 | . . 1 2 . 1 . . 2 . . 1 . . 1 . . 1 1 1 . 1 Phase Generator 1 | . . . . . . . . . . . . . . . . . . . . . 1 Machines Sabotaged . | . . . . . . . . . . . . . . . . . . . . . . Garrisons Compromised . | . . . . . . . . . . . . . . . . . . . . . . Overloaded Fab Kills . | . . . . . . . . . . . . . . . . . . . . . . Hacking | -11 -10 -9 -8 -7 -7 -6 -6 -6 -5 -5 -4 -4 -4 -4 -3 -3 -2 -2 -2 -1 -1 --------- Run | Scr Mat Mat Mat Fac DSF Fac Was Fac Fac DSF Fac Upp Upp War Pro Res Res Tes Sec Acc Com Machines Accessed 72 | . 6 1 4 2 . 3 . 7 1 . 4 . . 10 . 3 2 5 14 2 8 Terminals 59 | . 6 1 4 2 . 3 . 7 1 . 4 . . . . 1 2 5 13 2 8 Fabricators 2 | . . . . . . . . . . . . . . . . 2 . . . . . Repair Stations . | . . . . . . . . . . . . . . . . . . . . . . Recycling Units . | . . . . . . . . . . . . . . . . . . . . . . Scanalyzers 1 | . . . . . . . . . . . . . . . . . . . 1 . . Garrison Access . | . . . . . . . . . . . . . . . . . . . . . . Total Hacks 170 | . 24 3 12 3 . 7 . 22 1 . 13 . . 22 . 5 4 9 23 5 17 Successful 96 | . 20 2 8 3 . 2 . 7 1 . 4 . . 22 . 1 1 4 9 2 10 Failed 74 | . 4 1 4 . . 5 . 15 . . 9 . . . . 4 3 5 14 3 7 Catastrophic 17 | . . . . . . . . 2 . . 1 . . . . 2 2 2 3 2 3 Database Lockouts . | . . . . . . . . . . . . . . . . . . . . . . Manual 104 | . 22 3 11 1 . 6 . 22 . . 11 . . . . 5 3 4 9 . 7 Terminals 143 | . 24 3 12 3 . 7 . 22 1 . 13 . . . . 1 4 9 22 5 17 Fabricators 4 | . . . . . . . . . . . . . . . . 4 . . . . . Repair Stations . | . . . . . . . . . . . . . . . . . . . . . . Recycling Units . | . . . . . . . . . . . . . . . . . . . . . . Scanalyzers 1 | . . . . . . . . . . . . . . . . . . . 1 . . Garrison Access . | . . . . . . . . . . . . . . . . . . . . . . Terminal Hacks 69 | . 14 1 3 2 . 1 . 2 1 . 1 . . 22 . . 1 4 7 2 8 Record 18 | . . . . . . . . . . . . . . 15 . . . . 2 . 1 Robot Analysis 2 | . . . 1 . . 1 . . . . . . . . . . . . . . . Prototype ID Bank 16 | . 10 . . 1 . . . . . . . . . 5 . . . . . . . Open Door 6 | . . . . . . . . . . . . . . 2 . . . 1 3 . . Open DSF 2 | . . . . 1 . . . . 1 . . . . . . . . . . . . Level Access Points 5 | . 1 1 1 . . . . 1 . . 1 . . . . . . . . . . Branch Access Points 4 | . 1 . 1 . . . . 1 . . . . . . . . 1 . . . . Emergency Access Points 2 | . . . . . . . . . . . . . . . . . . . 1 . 1 Locate Traps 5 | . 1 . . . . . . . . . . . . . . . . 2 . 1 1 Reprogram Traps 2 | . . . . . . . . . . . . . . . . . . . . . 2 Registered Prototypes 1 | . . . . . . . . . . . . . . . . . . . . . 1 Zone Layout 2 | . 1 . . . . . . . . . . . . . . . . . . 1 . Protovariant Controls 1 | . . . . . . . . . . . . . . . . . . 1 . . . Activate Exoskeleton 1 | . . . . . . . . . . . . . . . . . . . 1 . . Disengage Seal 2 | . . . . . . . . . . . . . . . . . . . . . 2 Fabricator Hacks . | . . . . . . . . . . . . . . . . . . . . . . Repair Station Hacks . | . . . . . . . . . . . . . . . . . . . . . . Recycling Unit Hacks . | . . . . . . . . . . . . . . . . . . . . . . Scanalyzer . | . . . . . . . . . . . . . . . . . . . . . . Garrison Access Hacks . | . . . . . . . . . . . . . . . . . . . . . . Unauthorized Hacks 27 | . 6 1 5 1 . 1 . 5 . . 3 . . . . 1 . . 2 . 2 Terminals 26 | . 6 1 5 1 . 1 . 5 . . 3 . . . . . . . 2 . 2 Botnet 23 | . 6 1 4 1 . 1 . 5 . . 3 . . . . . . . 2 . . Detonate 3 | . . . 1 . . . . . . . . . . . . . . . . . 2 Fabricators 1 | . . . . . . . . . . . . . . . . 1 . . . . . Fabnet 1 | . . . . . . . . . . . . . . . . 1 . . . . . Repair Stations . | . . . . . . . . . . . . . . . . . . . . . . Recycling Units . | . . . . . . . . . . . . . . . . . . . . . . Scanalyzers . | . . . . . . . . . . . . . . . . . . . . . . Garrison Access . | . . . . . . . . . . . . . . . . . . . . . . Data Cores Recovered 4 | . . . . . . . . 1 . . . . . . . . . . 2 . 1 Used 3 | . . . . . . . . 1 . . . . . . . . . . 2 . . Hacking Detections 52 | . 5 1 3 1 . 3 . 7 . . 4 . . . . 3 2 4 11 2 6 Full Trace Events 16 | . 1 1 2 . . . . 1 . . 3 . . . . 2 1 . . 2 3 Feedback Events . | . . . . . . . . . . . . . . . . . . . . . . Feedback Blocked 1 | . . . . . . . . . . . . . . . . 1 . . . . . Robot Schematics Acquired 4 | . . . . . . . . . . . . . . . . . . 4 . . . Robots Built . | . . . . . . . . . . . . . . . . . . . . . . Authchips . | . . . . . . . . . . . . . . . . . . . . . . Time . | . . . . . . . . . . . . . . . . . . . . . . Total Robot Build Rating . | . . . . . . . . . . . . . . . . . . . . . . Part Schematics Acquired 10 | . . . . . . . . . . . . . . . . . . 10 . . . Parts Built . | . . . . . . . . . . . . . . . . . . . . . . Authchips . | . . . . . . . . . . . . . . . . . . . . . . Time . | . . . . . . . . . . . . . . . . . . . . . . Total Part Build Rating . | . . . . . . . . . . . . . . . . . . . . . . Parts Repaired . | . . . . . . . . . . . . . . . . . . . . . . Time . | . . . . . . . . . . . . . . . . . . . . . . Parts Recycled . | . . . . . . . . . . . . . . . . . . . . . . Recycled Matter . | . . . . . . . . . . . . . . . . . . . . . . Retrieved Matter . | . . . . . . . . . . . . . . . . . . . . . . Retrieved Components . | . . . . . . . . . . . . . . . . . . . . . . Parts Scanalyzed . | . . . . . . . . . . . . . . . . . . . . . . Part Schematics Acquired . | . . . . . . . . . . . . . . . . . . . . . . Parts Damaged . | . . . . . . . . . . . . . . . . . . . . . . Bothacking | -11 -10 -9 -8 -7 -7 -6 -6 -6 -5 -5 -4 -4 -4 -4 -3 -3 -2 -2 -2 -1 -1 ------------ Run | Scr Mat Mat Mat Fac DSF Fac Was Fac Fac DSF Fac Upp Upp War Pro Res Res Tes Sec Acc Com Used RIF Installer . | . . . . . . . . . . . . . . . . . . . . . . Robots Hacked 5 | . . . . . . . . . . . . . . . . . 2 . 2 1 . Non-combat . | . . . . . . . . . . . . . . . . . . . . . . Combat 5 | . . . . . . . . . . . . . . . . . 2 . 2 1 . Robot Hacks Applied . | . . . . . . . . . . . . . . . . . . . . . . Relay Couplers Released . | . . . . . . . . . . . . . . . . . . . . . . Fabnet Peak Effective % 3 | . . . . . . . . . . . . . . . . . 3 3 3 1 1 Autooverrided 5 | . . . . . . . . . . . . . . . . . 2 . 2 1 . Robots Rewired . | . . . . . . . . . . . . . . . . . . . . . . Allies Hacked 1 | . . . . . . . . . . . . . . . . . 1 . . . . Hacks Repelled . | . . . . . . . . . . . . . . . . . . . . . . Allies | -11 -10 -9 -8 -7 -7 -6 -6 -6 -5 -5 -4 -4 -4 -4 -3 -3 -2 -2 -2 -1 -1 -------- Run | Scr Mat Mat Mat Fac DSF Fac Was Fac Fac DSF Fac Upp Upp War Pro Res Res Tes Sec Acc Com Total Allies 5 | . . . . . . . . . . . . . . . . . 2 . 2 1 . Largest Group 1 | . . . . . . . . . . . . . . . . . 1 . 1 . . Highest-Rated Group 64 | . . . . . . . . . . . . . . . . . 30 . 64 . . Highest-Rated Ally 64 | . . . . . . . . . . . . . . . . . 30 . 64 . . Total Orders . | . . . . . . . . . . . . . . . . . . . . . . Ally Attacks 6 | . . . . . . . . . . . . . . . . . 1 . 4 1 . Total Damage 208 | . . . . . . . . . . . . . . . . . 22 . 162 24 . Kills . | . . . . . . . . . . . . . . . . . . . . . . Allies Corrupted . | . . . . . . . . . . . . . . . . . . . . . . Allies Melted . | . . . . . . . . . . . . . . . . . . . . . . Intel | -11 -10 -9 -8 -7 -7 -6 -6 -6 -5 -5 -4 -4 -4 -4 -3 -3 -2 -2 -2 -1 -1 ------- Run | Scr Mat Mat Mat Fac DSF Fac Was Fac Fac DSF Fac Upp Upp War Pro Res Res Tes Sec Acc Com Robot Analysis Total 2 | . . . 1 . . 1 . . . . . . . . . . . . . . . Derelict Logs Recovered 3 | . . . . . . . . . . . . 1 2 . . . . . . . . Drone Launches . | . . . . . . . . . . . . . . . . . . . . . . Drone Recoveries . | . . . . . . . . . . . . . . . . . . . . . . Decoded 0b10 Intel 21 | . . . . . . . . . . . . . . . . 7 12 2 . . . Traps 1 | . . . . . . . . . . . . . . . . . . 1 . . . Emergency Access 2 | . . . . . . . . . . . . . . . . . 2 . . . . Items 18 | . . . . . . . . . . . . . . . . 7 10 1 . . . Exploration | -11 -10 -9 -8 -7 -7 -6 -6 -6 -5 -5 -4 -4 -4 -4 -3 -3 -2 -2 -2 -1 -1 ------------- Run | Scr Mat Mat Mat Fac DSF Fac Was Fac Fac DSF Fac Upp Upp War Pro Res Res Tes Sec Acc Com Turns Passed 10914 | 113 654 760 1108 61 197 281 99 1010 6 66 1097 610 532 332 160 280 442 453 1118 484 1051 Spaces Moved 15134 | 89 464 410 476 45 112 239 108 1132 5 112 1245 1221 644 1106 879 708 1067 951 1927 686 1508 Core 7 | 5 . . . . . . . . . . . . . . . . . . 2 . . Treads . | . . . . . . . . . . . . . . . . . . . . . . Legs 2173 | 84 464 410 476 45 112 239 108 235 . . . . . . . . . . . . . Wheels . | . . . . . . . . . . . . . . . . . . . . . . Hover 10381 | . . . . . . . . 897 5 112 1245 1221 352 . . 450 1067 951 1919 680 1482 Flight 2535 | . . . . . . . . . . . . . 292 1106 879 258 . . . . . Fastest Speed 11 | 50 120 120 120 90 90 90 90 44 40 36 36 40 17 11 11 15 27 21 21 32 27 Average Speed 48 | 116 121 120 158 108 90 90 91 58 40 40 42 41 67 21 16 28 32 33 36 41 33 Slowest Speed 1200 | 120 190 120 260 120 96 90 180 330 40 44 135 108 1155 103 17 98 36 36 1200 196 44 Overloaded Moves 692 | . . . . . . . . . . . . . . 19 89 43 . 142 399 . . Propulsion Burnouts . | . . . . . . . . . . . . . . . . . . . . . . Robots Hopped 1 | . . . . . . . . . . . . . . . 1 . . . . . . Cave-ins Triggered . | . . . . . . . . . . . . . . . . . . . . . . Teleports 1 | . . . . . . . . . . . . . . . . . . . 1 . . Spacefolds 15 | . . . . . . . . . . . . . . . . . . . 3 2 10 Exploration Rate (%) 52 | 4 67 44 47 2 89 9 82 33 1 88 39 98 66 98 98 22 31 60 93 24 52 Regions Visited 21 Branch Regions 7 Pre-discovered Areas . | . . . . . . . . . . . . . . . . . . . . . . Known Exits Taken 17 | 1 1 1 1 1 . . . 1 1 . 1 1 1 1 1 1 1 1 1 1 . Unknown Exits Taken . | . . . . . . . . . . . . . . . . . . . . . . Scrap Searched 3 | . . . . . . . . . . . . 1 1 . 1 . . . . . . Spaces Dug 22 | . . . . . . . . . . . . . . 1 . 1 . 3 2 . 15 Terrain Destroyed 136 | . 3 11 39 . 2 . . 43 . . 11 . 5 1 . 1 . 3 2 . 15 Melee 22 | . . . . . . . . . . . . . . 1 . 1 . 3 2 . 15 Projectile . | . . . . . . . . . . . . . . . . . . . . . . AOE 114 | . 3 11 39 . 2 . . 43 . . 11 . 5 . . . . . . . . Terrain Rammed . | . . . . . . . . . . . . . . . . . . . . . . Walls Destroyed . | . . . . . . . . . . . . . . . . . . . . . . Machines Disabled . | . . . . . . . . . . . . . . . . . . . . . . Actions | -11 -10 -9 -8 -7 -7 -6 -6 -6 -5 -5 -4 -4 -4 -4 -3 -3 -2 -2 -2 -1 -1 --------- Run | Scr Mat Mat Mat Fac DSF Fac Was Fac Fac DSF Fac Upp Upp War Pro Res Res Tes Sec Acc Com Total 18019 | 95 521 601 669 57 169 271 107 1359 7 137 1738 1295 731 1193 891 779 1168 1079 2323 880 1949 Wait 1447 | . 15 137 49 . . . . 63 . . 293 43 30 43 6 8 23 63 235 113 326 Move 15088 | 88 463 409 475 44 111 239 107 1131 4 111 1244 1220 643 1105 876 707 1066 950 1923 681 1491 Hop 1 | . . . . . . . . . . . . . . . 1 . . . . . . Pick Up 117 | . 11 2 7 1 5 1 . 11 . 5 17 5 . 4 . 7 9 3 12 3 14 Fast Attach 228 | 7 6 5 12 2 7 5 . 17 . 5 22 3 13 14 2 10 15 13 32 13 25 Attach 109 | . . 2 5 1 . 1 . 13 2 1 19 3 2 4 . 8 4 4 11 9 20 Detach 69 | . 3 1 3 . 1 . . 7 . 4 8 1 8 3 . 4 1 3 6 10 6 Swap 80 | . . . 1 5 8 2 . 11 1 2 10 2 1 2 4 6 9 2 7 2 5 Drop 232 | . 6 6 8 4 16 6 . 15 . 9 23 6 9 14 2 16 27 19 31 7 8 Fire 535 | . 17 39 105 . 21 17 . 78 . . 93 10 20 . . 8 14 10 52 42 9 Melee 76 | . . . . . . . . . . . 5 2 5 4 . 5 . 12 9 . 34 Ram 5 | . . . . . . . . . . . 4 . . . . . . . 1 . . Kick 4 | . . . 4 . . . . . . . . . . . . . . . . . . Crush . | . . . . . . . . . . . . . . . . . . . . . . Escape Stasis 27 | . . . . . . . . 13 . . . . . . . . . . 3 . 11 Rewire 1 | . . . . . . . . . . . . . . . . . . . 1 . . Trap . | . . . . . . . . . . . . . . . . . . . . . . Miscellaneous . | . . . . . . . . . . . . . . . . . . . . . . Route ------- -11/Scrapyard -10/Materials (discovered 4 exits: *Mat x3 / *Min) -9/Materials (discovered 4 exits: *Mat x3 / *Min) -8/Materials (discovered 3 exits: *Fac x3) -7/Factory -7/DSF -6/Factory (discovered 2 exits: *Fac / *Low) -6/Waste -6/Factory (discovered 6 exits: *Fac x4 / Low x2) -5/Factory -5/DSF -4/Factory (discovered 5 exits: *Res x4 / *Upp) -4/Upper Caves (discovered 2 exits: *Upp / *War) -4/Upper Caves (discovered 2 exits: *Res / *War) -4/Warlord -3/Proximity Caves -3/Research -2/Research (discovered 4 exits: *Acc x2 / *Tes x2) -2/Testing -2/Section 7 -1/Access -1/Command To Epsilon Eridani History --------- Turn | Location | Event 5 | -11/Scrapyard | Identified exit to Materials 5 | -11/Scrapyard | Discovered exit to Materials (range 15) 114 | -11/Scrapyard | Entered Materials 114 | -10/Materials | Evolved 1 slot: Utility x1 311 | -10/Materials | Build established: Hacker-Mutant 384 | -10/Materials | Identified exit to Mines 384 | -10/Materials | Discovered exit to Mines (range 14) 608 | -10/Materials | Identified exit to Materials 768 | -10/Materials | Entered another Materials area 768 | -9/Materials | Evolved 2 slots: Propulsion x1, Utility x1 1255 | -9/Materials | Identified exit to Mines 1255 | -9/Materials | Discovered exit to Mines (range 12) 1283 | -9/Materials | Identified exit to Materials 1528 | -9/Materials | Entered another Materials area 1528 | -8/Materials | Evolved 2 slots: Power x1, Propulsion x1 1810 | -8/Materials | Lost 5 parts (1p2n2w) 1928 | -8/Materials | Search patrols dispatched 2026 | -8/Materials | Identified exit to Factory 2328 | -8/Materials | Search patrols dispatched 2636 | -8/Materials | Entered Factory 2636 | -7/Factory | Evolved 2 slots: Propulsion x1, Utility x1 2697 | -7/Factory | Identified exit to DSF 2697 | -7/Factory | Entered DSF 2722 | -7/DSF | Additional patrols routed to DSF 2799 | -7/DSF | Identified exit to Factory 2799 | -7/DSF | Discovered exit to Factory (range 16) 2870 | -7/DSF | Sterilization system engaged 2890 | -7/DSF | Ambient heat levels rising (+10) 2894 | -7/DSF | Entered Factory 2894 | -6/Factory | Evolved 2 slots: Utility x2 2926 | -6/Factory | Identified exit to Lower Caves 2926 | -6/Factory | Discovered exit to Lower Caves (range 4) 3009 | -6/Factory | Identified exit to Factory 3009 | -6/Factory | Discovered exit to Factory (range 11) 3135 | -6/Factory | Build established: Hacker-Skirmisher 3175 | -6/Factory | Sucked down chute 3175 | -6/Factory | Entered Waste 3188 | -6/Waste | Spotted C-40 Crusher 3190 | -6/Waste | EMP discharged 3194 | -6/Waste | Spotted C-40 Crusher 3195 | -6/Waste | Spotted C-40 Crusher 3198 | -6/Waste | Spotted C-40 Crusher 3220 | -6/Waste | Crushed by Compactor (1 part destroyed, 2 dropped) 3223 | -6/Waste | Crushed by Compactor (1 part destroyed) 3231 | -6/Waste | Spotted C-40 Crusher 3233 | -6/Waste | Spotted C-40 Crusher 3236 | -6/Waste | Crushed by Compactor (1 part destroyed, 1 dropped) 3263 | -6/Waste | Identified exit to Factory 3263 | -6/Waste | Discovered exit to Factory (range 12) 3267 | -6/Waste | Lost 4 parts (2n1u1w) 3274 | -6/Waste | Entered Factory 3528 | -6/Factory | Build established: Hacker-Mutant 3554 | -6/Factory | Lost 3 parts (1n1u1w) 3997 | -6/Factory | System corruption reached 10% 4207 | -6/Factory | Build established: Scavenger-Scout 4284 | -6/Factory | Entered another Factory area 4284 | -5/Factory | Evolved 2 slots: Propulsion x1, Utility x1 4290 | -5/Factory | Identified exit to DSF 4290 | -5/Factory | Entered DSF 4325 | -5/DSF | Additional patrols routed to DSF 4325 | -5/DSF | Identified exit to Factory 4325 | -5/DSF | Discovered exit to Factory (range 20) 4356 | -5/DSF | Entered Factory 4356 | -4/Factory | Evolved 2 slots: Propulsion x1, Utility x1 4573 | -4/Factory | Found Quantum Capacitor 4690 | -4/Factory | Build established: Hacker-Scout 4749 | -4/Factory | Identified exit to Research 4919 | -4/Factory | Lost 6 parts (4n1u1w) 5029 | -4/Factory | Garrison activated, responded to threat 5266 | -4/Factory | Lost 3 parts (1p1n1w) 5309 | -4/Factory | Found Prototype Device 5309 | -4/Factory | Identified Adv. EM Disruption Field 5437 | -4/Factory | Identified exit to Upper Caves 5437 | -4/Factory | Discovered exit to Upper Caves (range 15) 5453 | -4/Factory | Entered Upper Caves 5560 | -4/Upper Caves | A Derelict revealed a hidden shortcut to "reach the base" 5627 | -4/Upper Caves | Identified exit to Upper Caves 5627 | -4/Upper Caves | Discovered exit to Upper Caves (range 3) 5629 | -4/Upper Caves | Learned location of 1 exit from Proximity Caves 5662 | -4/Upper Caves | Attracted the attention of an 0b10 checkpoint 5687 | -4/Upper Caves | Identified exit to Warlord 6063 | -4/Upper Caves | Entered another Upper Caves area 6115 | -4/Upper Caves | Discovered exit to Research (range 7) 6180 | -4/Upper Caves | Learned Research terminal intel 6222 | -4/Upper Caves | Build established: Scavenger-Scout 6295 | -4/Upper Caves | Destroyed 9 combat bots 6302 | -4/Upper Caves | Lost 7 parts (6n1w) 6539 | -4/Upper Caves | Discovered exit to Warlord (range 6) 6543 | -4/Upper Caves | Encountered a Warlord checkpoint 6546 | -4/Upper Caves | Spotted B-86 Titan 6595 | -4/Upper Caves | Entered Warlord 6602 | -4/Warlord | Identified exit to Proximity Caves 6602 | -4/Warlord | Discovered exit to Proximity Caves (range 8) 6626 | -4/Warlord | System corruption cleaned by Quarantine Array 6732 | -4/Warlord | Found Prototype Special Weapon 6732 | -4/Warlord | Identified RU-N14's Throwing Claymores v3 6747 | -4/Warlord | Visited the Vortex Lab 6748 | -4/Warlord | Found Prototype Piercing Weapon 6748 | -4/Warlord | Identified Vortex Lance 6750 | -4/Warlord | Warlord's base attacked by MAIN.C 6750 | -4/Warlord | Found Prototype Energy Gun 6750 | -4/Warlord | Identified Vortex Rail 6775 | -4/Warlord | Met Warlord 6805 | -4/Warlord | Found Vortex Lance 6829 | -4/Warlord | Found Prototype Reactor 6829 | -4/Warlord | Identified Vortex Chain Reactor 6839 | -4/Warlord | Found Prototype Processor 6839 | -4/Warlord | Identified Exp. Core Analyzer 6841 | -4/Warlord | Found Prototype Device 6841 | -4/Warlord | Identified Thermal Barrier 6865 | -4/Warlord | Learned Testing stockpile data 6865 | -4/Warlord | Learned 4 Access zone layouts 6865 | -4/Warlord | Learned 4 Testing zone layouts 6865 | -4/Warlord | Learned Research security intel 6865 | -4/Warlord | Learned Factory recycling unit intel 6865 | -4/Warlord | Learned Armory terminal intel 6916 | -4/Warlord | Opened side exit 6927 | -4/Warlord | Entered Proximity Caves 7005 | -3/Proximity Caves | Attracted the attention of an 0b10 checkpoint 7087 | -3/Proximity Caves | Entered Research 7087 | -3/Research | Evolved 2 slots: Power x1, Utility x1 7089 | -3/Research | Loaded intel: 22 terminal locations 7247 | -3/Research | Identified exit to Research 7247 | -3/Research | Discovered exit to Research (range 15) 7367 | -3/Research | Entered another Research area 7367 | -2/Research | Warlord forces began assault on 0b10 7367 | -2/Research | Evolved 2 slots: Utility x2 7368 | -2/Research | Identified exit to Access 7443 | -2/Research | Identified exit to Testing 7477 | -2/Research | Research machine network offline 7482 | -2/Research | Met up with Warlord 7621 | -2/Research | Build established: Generator-Sprinter 7652 | -2/Research | Found Quantum Capacitor 7667 | -2/Research | Borebot progress halted 7763 | -2/Research | Spotted Striker 7770 | -2/Research | Discovered exit to Access (range 15) 7771 | -2/Research | Spotted Striker 7796 | -2/Research | Spotted B-90 Cyclops 7809 | -2/Research | Entered Testing 7835 | -2/Testing | Found Prototype Protection 7835 | -2/Testing | Identified Lgt. Regenerative Plating 7838 | -2/Testing | Found Prototype Protection 7838 | -2/Testing | Identified Med. Regenerative Plating 7866 | -2/Testing | Found Prototype Device 7866 | -2/Testing | Identified Exp. Hardlight Generator 7884 | -2/Testing | Found Prototype Processor 7884 | -2/Testing | Identified Exp. Signal Interpreter 7898 | -2/Testing | Scanned by Researcher 8020 | -2/Testing | Build established: Generator-Mutant 8059 | -2/Testing | Found Prototype Device 8059 | -2/Testing | Identified Exp. Cloaking Device 8082 | -2/Testing | Found Prototype Energy Cannon 8082 | -2/Testing | Identified Imp. Potential Cannon 8230 | -2/Testing | Spotted Fortress 8259 | -2/Testing | Identified exit to Section 7 8259 | -2/Testing | Discovered exit to Section 7 (range 6) 8262 | -2/Testing | Entered Section 7 8427 | -2/Section 7 | Found Alien Artifact 8427 | -2/Section 7 | Identified Spacefold Activator 8495 | -2/Section 7 | Discovered exit to Access (range 14) 8520 | -2/Section 7 | Found Alien Artifact 8520 | -2/Section 7 | Identified Integrity Redistributor 8520 | -2/Section 7 | Used Integrity Redistributor, redistributed integrity from core (-31) 8790 | -2/Section 7 | Found Alien Artifact 8790 | -2/Section 7 | Identified Integrated Dissipator 8790 | -2/Section 7 | Installed Integrated Dissipator, increased core heat dissipation (+20) 8879 | -2/Section 7 | Destroyed 7 combat bots 8902 | -2/Section 7 | Spotted S7 Guard 8909 | -2/Section 7 | Found Alien Artifact 8909 | -2/Section 7 | Identified Core Physics Calibrator 8950 | -2/Section 7 | Spotted Alpha 7 8977 | -2/Section 7 | Garrison activated, responded to threat 9042 | -2/Section 7 | Search patrols dispatched 9059 | -2/Section 7 | Spotted B-90 Cyclops 9063 | -2/Section 7 | Found Prototype Device 9063 | -2/Section 7 | Identified Exp. Thermal Defense Suite 9134 | -2/Section 7 | Lost 3 parts (2p1n) 9145 | -2/Section 7 | Spotted B-99 Colossus 9160 | -2/Section 7 | Found Alien Artifact 9160 | -2/Section 7 | Identified Integrated Reactor 9160 | -2/Section 7 | Installed Integrated Reactor, increased core energy generation (+10) 9162 | -2/Section 7 | Found Integrated Reactor 9162 | -2/Section 7 | Installed Integrated Reactor, increased core energy generation (+10) 9164 | -2/Section 7 | Found Integrated Reactor 9164 | -2/Section 7 | Installed Integrated Reactor, increased core energy generation (+10) 9178 | -2/Section 7 | Found Alien Artifact 9178 | -2/Section 7 | Identified LRC Storage 9178 | -2/Section 7 | Installed LRC Storage, increased inventory capacity (+2) 9180 | -2/Section 7 | Found Alien Artifact 9180 | -2/Section 7 | Identified LRC Armor 9180 | -2/Section 7 | Installed LRC Armor, increased core integrity (+250) 9202 | -2/Section 7 | Found Integrated Dissipator 9202 | -2/Section 7 | Installed Integrated Dissipator, increased core heat dissipation (+20) 9251 | -2/Section 7 | Spotted Executioner 9259 | -2/Section 7 | Spotted Striker 9259 | -2/Section 7 | Spotted Striker 9272 | -2/Section 7 | Door terminal overloaded 9276 | -2/Section 7 | Found Alien Reactor 9280 | -2/Section 7 | Found Alien Energy Cannon 9286 | -2/Section 7 | Found Alien Reactor 9293 | -2/Section 7 | Found Alien Artifact 9293 | -2/Section 7 | Identified Terrabomb 9293 | -2/Section 7 | Used Terrabomb 9297 | -2/Section 7 | Found Alien Artifact 9297 | -2/Section 7 | Identified Transdimensional Reconstructor 9297 | -2/Section 7 | Warped through subspace 9305 | -2/Section 7 | Search patrols dispatched 9310 | -2/Section 7 | Scanned by Researcher 9330 | -2/Section 7 | Spotted Executioner 9332 | -2/Section 7 | Identified Matter Drive (x2) 9343 | -2/Section 7 | Intercept squad dispatched 9344 | -2/Section 7 | Spotted Tracker 9345 | -2/Section 7 | Spotted Tracker 9345 | -2/Section 7 | Spotted Combat Programmer 9352 | -2/Section 7 | Spotted Combat Programmer 9380 | -2/Section 7 | Entered Access 9380 | -1/Access | Evolved 2 slots: Power x1, Propulsion x1 9409 | -1/Access | Lost 6 parts (1p2n1u2w) 9630 | -1/Access | Search patrols dispatched 9763 | -1/Access | Intercept squad dispatched 9778 | -1/Access | Spotted Tracker 9779 | -1/Access | Spotted Tracker 9796 | -1/Access | Destroyed Tracker 9802 | -1/Access | Destroyed Tracker 9809 | -1/Access | Spotted Combat Programmer 9810 | -1/Access | Spotted Combat Programmer 9860 | -1/Access | Spotted B-99 Colossus 9860 | -1/Access | Spotted B-99 Colossus 9862 | -1/Access | Identified exit to Command 9862 | -1/Access | Discovered exit to Command (range 6) 9864 | -1/Access | Entered Command 9891 | -1/Command | Lost 14 parts (2p3n8u1w) 9955 | -1/Command | Spotted B-99 Colossus 9960 | -1/Command | Found Enh. Force Lance 9971 | -1/Command | Found Quantum Capacitor 10076 | -1/Command | Spotted Alpha 7 10076 | -1/Command | Spotted Striker 10076 | -1/Command | Spotted Executioner 10076 | -1/Command | Spotted Executioner 10112 | -1/Command | System corruption reached 10% 10130 | -1/Command | Lost 3 parts (1p1u1w) 10144 | -1/Command | Search patrols dispatched 10220 | -1/Command | Core integrity fell below 50% 10260 | -1/Command | Lost 4 parts (1p1n2u) 10303 | -1/Command | Phase Generator disabled 10355 | -1/Command | Disengaged cave seal 10357 | -1/Command | Lost 3 parts (1n1u1w) 10378 | -1/Command | Spotted Striker 10379 | -1/Command | Spotted Executioner 10379 | -1/Command | Spotted Alpha 7 10394 | -1/Command | Search patrols dispatched 10398 | -1/Command | Disengaged cave seal 10498 | -1/Command | Welcomed Warlord to Command 10500 | -1/Command | Spotted Executioner 10579 | -1/Command | Warlord destroyed during the assault 10580 | -1/Command | Spotted B-99 Colossus 10583 | -1/Command | Spotted B-99 Colossus 10652 | -1/Command | P-80 Master assimilated allied IH-LNC(M) 10661 | -1/Command | Search patrols dispatched 10779 | -1/Command | Build established: Generator-Ninja 10797 | -1/Command | Identified exit to Surface 10797 | -1/Command | Discovered exit to Surface (range 20) 10915 | *** | Escaped! Last Messages --------------- 10910_ Field strength at 86. 10911_ Field strength at 4. 10911_ Field strength at 79. 10911_ Field strength at 72. 10911_ K-01 Serf collects debris. 10912_ Stasis field depleted. 10912_ HS-HKX(g) triggered Stasis Trap. 10912_ A bubble of rippling energy engulfs the area. 10912_ Field strength at 84. 10912_ Field strength at 58. 10913_ Slug penetrates GQ-RXU(p). 10913_ GQ-RXU(p) destroyed. 10913_ Slug penetrates X9-CVU(K). 10913_ Slug penetrates Wall. 10913_ The Access Shell folds into the floor. 10913_ Field strength at 68. 10914_ System corrupted: Component data lost. 10914_ K-01 Serf collects debris. 10914_ Field strength at 52. [Achievement: Winner's Signature] Map ----- +----------------------------------------------------+ | # #??# | | # #### | | ### # | | ! %/ | | ! % % +* | | % % % %# | | % %%####### %# | | #######% % ##?## #%% *# | | #???##;////##??#####! %!!######## | | #?#?#; %%=*#?????##%" %!%"##?#??? | | ## #??##;^^^%%%####??# !%[ !" ##???? | | ## % ##### ^! % #?#??# [= %# #???#? | | / #?####^! % ###???## "/=[ ###????? | | ####+######"##"###??# ^ %! %#??#??### !! #????#?? | | #?# """" #####???##^^g!g[ #?####??#=%! ######## | | #?# ""R"" #??????## ^ gpgg%##??#?#?#!=! # # | | #?# "" "" #???????##^^^^!! #???#??# # """ # | | #?# ##????#?# ^^ #??????# # " "" # | | #?# #?#???###; K #k####??## + """" # | | ### #?????#BB % ##????# #### ""T # | | #?# #?????#BB % % #??#?## #??# # | | #?# ##??### ^^ % #?#???# #??######## | | #?#"#######"#????## ##??#?#!#?#???????# | | #?###?????###?????# ^ ^ #?????#!#?????????? | | ###?????#?????????# "" #?#####!#???#?????? | | #????????#??#???# "@ ^ #?#""##+##????????? | | #???????????????# ^ #?#" ! ##???????? | | ""#??????????#????# #?## ! "#???????? | | ""#?????????????#?# ^ #?## ###??##??? | | T"#???????????????# #?#" = "#???#???? | | ""#???????????????# #?## ##???????? | | ""#???????????????##############?#" ##????##?? | | #??????????????????????????????## "#???????? | | #???????????????????????????????#"##"###???????? | | ###??????????????????????#????????######??????#?#? | | ????????????????????????????#???#??????#?????????# | | ??#?????????????????????????????????#????????????? | | ?????????????????????????????????????????????#???? | | ?????????????????????????????????????????????????? | | ?????????????????????????????????????????????????? | | ?????????????????????????????????????????????????? | | ???????????????????????????????????????????#??#??? | | ?????????????????????????????????????????????????? | | ?????????????????????????????????????????????????? | | ?????????????????????????????????????????????????? | | | | | | | | | | | +----------------------------------------------------+ Best States ------------- Heat Dissipation 159 Energy Generation 113 Energy Capacity 1250 Matter Stores 300 Matter Capacity 300 Sight Range 22 Robot Scan Range 18 Terrain Scan Range 20 Terrain Scan Density 210 ECM Strength 4 Jamming Range 12 Cloak Strength 4 Power Amplification 40 Additional Mass Support 12 EM Shielding 4 Corruption Containment 8 Corruption Block 20 Armor Coverage 225 Resistance: KI 65 Resistance: TH 65 Resistance: EX 35 Resistance: EM 85 Resistance: I 35 Resistance: S 35 Resistance: P 35 Propulsion Shielding 66 Utility Shielding 90 Phase Shifting 15 Evasion (%) 74 Core Analysis 8 Recoil Reduction 1 Energy Filtering 50 Particle Charging 20 Offensive Hacking 46 Defensive Hacking 12 Item Schematics ----------------- Adv. Gravity Neutralizer | -2/Testing | Archive Hvy. Neutron Cannon | -2/Testing | Archive Adv. Matter Compressor | -2/Testing | Archive Vibroblade | -2/Testing | Archive Hvy. Tesla Rifle | -2/Testing | Archive Cld. Q-thruster | -2/Testing | Archive Plasma Sword | -2/Testing | Archive Exp. Thermal Shield | -2/Testing | Archive Com. Mass Driver | -2/Testing | Archive Prc. Phase Gun | -2/Testing | Archive Robot Schematics ------------------ R-10 Processor | -2/Testing | Archive A-02 Transporter | -2/Testing | Archive S-43 Plague | -2/Testing | Archive C-65 Expert | -2/Testing | Archive Fabricated ------------ Nothing Alien Tech Used ----------------- Spacefold Activator Integrity Redistributor Integrated Dissipator Core Physics Calibrator Integrated Reactor LRC Storage LRC Armor Terrabomb Transdimensional Reconstructor Matter Drive Achievements -------------- Signature Confirmed Winner's Signature Challenges ------------ None Game ------ Seed LargeRemoteKatana Manual? 0 Play Time 05:05:28 Cumulative 91.1 hours Start 2022.04.15 @ 14:16:39 End 2022.04.15 @ 23:33:15 Sessions 1 Manual Loads 0 Difficulty Explorer Special Mode None Game No. 22 Rogue 0 Adventurer 1 Explorer 21 Win Type 0 Total 6 Types 4/0/1/1/0/0/0/0/0 Lore% 58 Gallery% 67 Achievement% 56 Wizard Run 0 Options --------- ASCII 0 Keyboard 0 Movement Numpad Keybinds 0 Fullscreen 0 Font 16/Terminus Map View 76x50 Tactical HUD 1 Map Filters NONE Filters NONE Steam 1 RUN: f98d3d3d-f9b9-454b-b836-79025b1de733